fUSD/lending_fUSD_20250517
["ID","MTS","AMOUNT","RATE_DAILY","PERIOD"]
[361339172,1747489846730,-200.0,0.0001529,2]
[361339174,1747489846739,-1517.64,0.000153,2]
[361339176,1747489846748,-200.0,0.00015323,2]
[361339178,1747489846758,-150.0,0.00015369,2]
[361339180,1747489846767,-16154.24131451,0.000154,2]
[361339182,1747489846777,-250.0,0.000154,2]
[361339184,1747489846787,-491.19167017,0.000154,2]
[361339186,1747489846796,-786.7916149,0.00015866,2]
[361339188,1747489846806,-573.96,0.00015986,2]
[361339190,1747489846815,-480.0,0.00016087,2]
[361339192,1747489846825,-163.67,0.00016141,2]
[361339194,1747489846834,-1321.0,0.00016198,2]
[361339196,1747489846843,-433.0,0.00016311,2]
[361339198,1747489846853,-151.0,0.00016471,2]
[361339200,1747489846862,-2251.69683862,0.00016522,2]
[361339202,1747489846871,-1123.47,0.00016688,2]
[361339204,1747489846880,-150.0,0.00016739,2]
[361339206,1747489846890,-4483.21947084,0.00016767,2]
[361339208,1747489846899,-501.53806582,0.00016789,2]
[361339210,1747489846908,-786.7916149,0.00016831,2]
[361339212,1747489846917,-421.04,0.00017154,2]
[361339214,1747489846927,-329.17404733,0.00017614,2]
[361339216,1747489846936,-786.7916149,0.00017797,2]
[361339218,1747489846945,-1982.53,0.00017904,2]
[361339220,1747489846954,-200.0,0.00018061,2]
[361339222,1747489846963,-150.0,0.00018109,2]
[361339224,1747489846973,-167.24,0.00018152,2]
[361339226,1747489846982,-530.85,0.00018162,2]
[361339228,1747489846993,-573.96,0.0001825,2]
[361339230,1747489847003,-153.46,0.0001846,2]
[361339232,1747489847012,-26514.45,0.00018525,2]
[361339234,1747489847022,-286.9249569,0.00018553,2]
[361339236,1747489847031,-1005.66,0.00018557,2]
[361339238,1747489847041,-1000.0,0.00018659,2]
[361339240,1747489847050,-3450.93,0.00018682,2]
[361339242,1747489847059,-200.0,0.00018689,2]
[361339244,1747489847070,-163.55,0.00018717,2]
[361339247,1747489847083,-786.7916149,0.00018762,2]
[361339249,1747489847093,-200.0,0.00018789,2]
[361339251,1747489847103,-675.45,0.00018997,2]
[361339253,1747489847114,-2251.69683862,0.00019144,2]
[361339255,1747489847123,-390.97819546,0.00019178,2]
[361339257,1747489847134,-157.96,0.00019178,2]
[361339259,1747489847143,-226.25,0.00019479,2]
[361339261,1747489847152,-4483.21947084,0.00019633,2]
[361339263,1747489847161,-501.53806582,0.00019678,2]
[361339265,1747489847171,-786.7916149,0.00019728,2]
[361339267,1747489847180,-4000.0,0.0002,2]
[361339269,1747489847190,-4000.0,0.0002,2]
[361339271,1747489847200,-4000.0,0.0002,2]
[361339272,1747489847210,-4000.0,0.0002,2]
[361339274,1747489847220,-4000.0,0.0002,4]
[361339277,1747489847229,-4000.0,0.0002029,2]
[361339279,1747489847239,-989.73952753,0.000204,2]
[361339281,1747489847248,-167.24,0.00020421,2]
[361339283,1747489847258,-573.96,0.00020514,2]
[361339284,1747489847267,-786.7916149,0.00020693,3]
[361339286,1747489847276,-2413.82,0.00020951,2]
[361339288,1747489847286,-1000.0,0.00020991,2]
[361339291,1747489847295,-329.17404733,0.00021329,2]
[361339292,1747489847305,-4000.0,0.0002154,2]
[361339295,1747489847314,-786.7916149,0.00021659,5]
[361339297,1747489847323,-2251.69683862,0.00021766,2]
[361339298,1747489847332,-156.33,0.00021918,2]
[361339301,1747489847341,-4000.0,0.00022,4]
[361339302,1747489847350,-4483.21947084,0.000225,2]
[361339304,1747489847359,-168.15238171,0.00022567,2]
[361339306,1747489847368,-501.53806582,0.00022567,2]
[361339308,1747489847378,-786.7916149,0.00022624,7]
[361339311,1747489847388,-167.24,0.0002269,2]
[361339313,1747489847397,-573.96,0.00022778,2]
[361339314,1747489847406,-286.9249569,0.00023206,2]
[361339316,1747489847416,-1000.0,0.00023324,2]
[361339319,1747489847425,-799.0,0.00023535,2]
[361339320,1747489847435,-879.0,0.00023535,2]
[361339322,1747489847444,-154.0,0.00023535,2]
[361339324,1747489847453,-786.7916149,0.0002359,9]
[361339327,1747489847463,-327.81,0.00023836,2]
[361339328,1747489847472,-4000.0,0.00024,4]
[361339330,1747489847482,-2251.69683862,0.00024388,2]
[361339332,1747489847491,-786.7916149,0.00024555,11]
[361339334,1747489847500,-207.4,0.00024597,2]
[361339336,1747489847509,-207.4,0.00024597,2]
[361339338,1747489847518,-154.19770639,0.00024597,2]
[361339340,1747489847527,-151.0,0.00024597,2]
[361339342,1747489847538,-151.0,0.00024597,2]
[361339344,1747489847548,-693.3919763,0.00024597,2]
[361339346,1747489847557,-310921.41225873,0.000248,3]
[361339349,1747489847570,-594.34999,0.000248,3]
[361339500,1747490629584,159.14,0.00025486,120]
[361339502,1747490832500,400.0,0.00027397,120]
[361339507,1747491032215,-308.84060142,0.000136,2]
[361339508,1747491032273,-10.63687675,0.000136,2]
[361339509,1747491032283,-200.0,0.00013649,2]
[361339510,1747491032293,-223.90812825,0.00013649,2]
[361339511,1747491032306,-26.09187175,0.00013649,2]
[361339512,1747491032315,-151.79,0.00013699,2]
[361339513,1747491032327,-200.0,0.00013849,2]
[361339514,1747491032336,-1043.58431814,0.0001399,2]
[361339515,1747491032345,-150.0,0.00013999,2]
[361339516,1747491032355,-200.0,0.00014029,2]
[361339517,1747491032364,-300.0,0.00014349,2]
[361339518,1747491032373,-500.0,0.0001435,2]
[361339519,1747491032382,-500.0,0.0001435,2]
[361339520,1747491032391,-500.0,0.0001435,2]
[361339521,1747491032400,-500.0,0.0001435,2]
[361339522,1747491032409,-500.0,0.0001435,2]
[361339523,1747491032418,-500.0,0.0001435,2]
[361339524,1747491032427,-464.5568679,0.00014898,2]
[361339525,1747491032437,-1000.0,0.00014898,2]
[361339526,1747491032446,-1000.0,0.00014898,2]
[361339527,1747491032456,-1000.0,0.00014898,2]
[361339528,1747491032465,-1000.0,0.00014898,2]
[361339529,1747491032474,-1000.0,0.00014898,2]
[361339530,1747491032484,-200.0,0.0001496,2]
[361339531,1747491032493,-250.0,0.0001496,2]
[361339532,1747491032503,-250.0,0.00015,2]
[361339533,1747491032513,-200.0,0.00015068,2]
[361339534,1747491032522,-250.0,0.00015068,2]
[361339535,1747491032533,-150.0,0.00015369,2]
[361339536,1747491032544,-494.77878838,0.00015446,2]
[361339537,1747491032553,-616.97722601,0.00015446,2]
[361339538,1747491032563,-1000.0,0.00015446,2]
[361339539,1747491032573,-358.0,0.00015715,2]
[361339540,1747491032583,-150.0,0.00016739,2]
[361339541,1747491032594,-568.0,0.00016897,2]
[361339542,1747491032609,-270.0,0.00016981,2]
[361339543,1747491032618,-300.0,0.00017,2]
[361339544,1747491032628,-274.42969732,0.00017191,2]
[361339545,1747491032637,-150.0,0.00018109,2]
[361339546,1747491032648,-150.0,0.00019479,2]
[361339547,1747491032658,-150.0,0.00020849,2]
[361339548,1747491032667,-151.79,0.00020951,2]
[361339549,1747491032678,-439.94466252,0.00021533,2]
[361339550,1747491032688,-552.62829931,0.000219,6]
[361339551,1747491032697,-1200.0,0.00022217,2]
[361339553,1747491032707,-6696.75,0.00022218,2]
[361339556,1747491032717,-150.0,0.00022218,2]
[361339558,1747491032726,-500.0,0.00022397,2]
[361339559,1747491032736,-552.62829931,0.00022624,7]
[361339560,1747491032746,-500.0,0.00022777,2]
[361339561,1747491032755,-500.0,0.00023157,3]
[361339562,1747491032765,-567.0,0.00023157,2]
[361339563,1747491032775,-552.62829931,0.00023348,9]
[361339564,1747491032785,-500.0,0.00023537,3]
[361339565,1747491032794,-150.0,0.00023588,2]
[361339566,1747491032804,-500.0,0.00023917,4]
[361339567,1747491032815,-485.81,0.00024056,2]
[361339568,1747491032824,-552.62829931,0.00024072,10]
[361339569,1747491032834,-140.64436088,0.00024075,2]
[361339570,1747491032846,-970.95802374,0.00024075,2]
[361339571,1747491032865,-571.98017745,0.00024075,2]
[361339578,1747491039160,-1467.77383869,0.00024075,2]
[361339579,1747491039173,-98.75359924,0.00024075,2]
[361339580,1747491039184,-232.20882859,0.00024256,2]
[361339581,1747491039195,-207.4,0.00024256,2]
[361339582,1747491039204,-500.0,0.00024296,4]
[361339583,1747491039213,-34.68916222,0.0002433,2]
[361339584,1747491039225,-439.62846435,0.0002433,2]
[361339585,1747491039236,-390.13853768,0.0002433,2]
[361339586,1747491039245,-498.59234,0.0002435,2]
[361339587,1747491039254,-495.97523957,0.0002445,2]
[361339591,1747491040320,-434.81895778,0.0002445,2]
[361339592,1747491040332,-137.98930265,0.0002445,2]
[361339593,1747491040341,-351.11683563,0.00024572,2]
[361339594,1747491040350,-798.0,0.00024594,2]
[361339595,1747491040359,-153.0,0.00024594,2]
[361339596,1747491040368,-500.0,0.00024676,5]
[361339597,1747491040377,-23900.0,0.00024763,2]
[361339598,1747491040386,-552.62829931,0.00024797,11]
[361339599,1747491040395,-500.0,0.000248,3]
[361339600,1747491040404,-284.16,0.000248,3]
[361339601,1747491040413,-151.0,0.000249,7]
[361339602,1747491040422,-200.0,0.00024929,2]
[361339603,1747491040431,-250.0,0.00024929,2]
[361339604,1747491040440,-150.0,0.00024958,2]
[361339605,1747491040449,-500.0,0.00025056,6]
[361339606,1747491040458,-500.0,0.00025436,6]
[361339607,1747491040467,-150.0,0.00025485,7]
[361339608,1747491040476,-500.0,0.0002549,2]
[361339609,1747491040485,-500.0,0.0002549,2]
[361339610,1747491040494,-500.0,0.0002549,2]
[361339611,1747491040503,-500.0,0.0002549,2]
[361339612,1747491040512,-71.10556241,0.0002549,2]
[361339613,1747491040523,-428.89443759,0.0002549,2]
[361339614,1747491040532,-500.0,0.0002549,2]
[361339615,1747491040541,-500.0,0.0002549,2]
[361339616,1747491040550,-500.0,0.0002549,2]
[361339617,1747491040559,-500.0,0.0002549,2]
[361339618,1747491040568,-500.0,0.0002549,2]
[361339619,1747491040578,-500.0,0.0002549,2]
[361339620,1747491040587,-500.0,0.0002549,2]
[361339621,1747491040596,-500.0,0.0002549,2]
[361339622,1747491040608,-430.3545432,0.0002549,2]
[361339623,1747491040617,-500.0,0.0002549,2]
[361339624,1747491040626,-500.0,0.0002549,2]
[361339625,1747491040636,-500.0,0.0002549,2]
[361339626,1747491040647,-500.0,0.0002549,2]
[361339627,1747491040657,-500.0,0.0002549,2]
[361339628,1747491040666,-500.0,0.0002549,2]
[361339629,1747491040677,-500.0,0.0002549,2]
[361339630,1747491040686,-500.0,0.0002549,2]
[361339631,1747491040695,-552.62829931,0.00025521,13]
[361339632,1747491040705,-215.0738,0.00025625,2]
[361339633,1747491040714,-166.96,0.00025712,2]
[361339634,1747491040726,-213.45,0.00025786,12]
[361339635,1747491040735,-150.99,0.00025786,2]
[361339636,1747491040745,-612.49,0.00025786,20]
[361339637,1747491040754,-500.0,0.00025816,7]
[361339638,1747491040763,-273.17,0.00026016,2]
[361339639,1747491040773,-150.0,0.00026164,2]
[361339640,1747491040783,-500.0,0.00026196,7]
[361339641,1747491040792,-156.67826427,0.00026227,2]
[361339642,1747491040801,-500.0,0.00026227,2]
[361339643,1747491040810,-172.75025549,0.00026227,2]
[361339644,1747491040820,-552.62829931,0.00026245,14]
[361339645,1747491040829,-150.0,0.00026301,2]
[361339646,1747491040838,-485.81,0.0002632,2]
[361339647,1747491040847,-150.0,0.00026328,2]
[361339648,1747491040857,-150.0,0.00026438,2]
[361339649,1747491040866,-1349.0,0.00026452,2]
[361339650,1747491040875,-969.78325312,0.00026524,2]
[361339651,1747491040884,-150.0,0.00026575,2]
[361339652,1747491040894,-500.0,0.00026575,8]
[361339653,1747491040903,-1349.0,0.00026724,2]
[361339654,1747491040913,-402.30826654,0.00026775,2]
[361339655,1747491040922,-498.59234,0.0002685,2]
[361339656,1747491040931,-500.0,0.00026955,9]
[361339657,1747491040941,-552.62829931,0.00026969,16]
[361339658,1747491040950,-223.0315306,0.00026994,2]
[361339659,1747491040959,-1349.0,0.00026997,2]
[361339660,1747491040968,-1000.0,0.00027046,2]
[361339661,1747491040977,-1349.0,0.0002727,2]
[361339662,1747491040986,-500.0,0.00027335,9]
[361339663,1747491040995,-1148.27,0.00027397,2]
[361339664,1747491041004,-300.0,0.00027397,2]
[361339665,1747491041013,-900.0,0.00027401,2]
[361339666,1747491041022,-900.0,0.00027534,2]
[361339667,1747491041031,-1349.0,0.00027542,2]
[361339668,1747491041039,-1200.0,0.00027563,2]
[361339669,1747491041049,-1200.0,0.0002758,2]
[361339670,1747491041058,-1200.0,0.0002765,2]
[361339671,1747491041067,-900.0,0.00027676,2]
[361339672,1747491041076,-1200.0,0.00027688,2]
[361339673,1747491041085,-552.62829931,0.00027693,17]
[361339674,1747491041094,-150.0,0.00027698,2]
[361339675,1747491041103,-500.0,0.00027715,10]
[361339676,1747491041112,-500.0,0.00027809,2]
[361339677,1747491041123,-1349.0,0.00027815,2]
[361339678,1747491041134,-500.0,0.00027833,2]
[361339679,1747491041143,-1349.0,0.00028088,2]
[361339680,1747491041155,-900.0,0.0002809,2]
[361339681,1747491041165,-500.0,0.00028095,10]
[361339682,1747491041176,-500.0,0.00028201,2]
[361339683,1747491041185,-151.79,0.00028203,2]
[361339684,1747491041196,-231.28369723,0.00028363,2]
[361339685,1747491041206,-552.62829931,0.00028417,19]
[361339686,1747491041216,-500.0,0.00028474,11]
[361339687,1747491041225,-900.0,0.00028475,2]
[361339688,1747491041234,-485.81,0.00028584,2]
[361339689,1747491041243,-1200.0,0.0002862,2]
[361339690,1747491041252,-500.0,0.00028657,2]
[361339691,1747491041261,-500.0,0.00028657,2]
[361339692,1747491041271,-500.0,0.00028684,2]
[361339693,1747491041280,-500.0,0.00028684,2]
[361339694,1747491041289,-611.49056,0.00028712,2]
[361339695,1747491041298,-499.52574173,0.00028712,2]
[361339696,1747491041307,-500.0,0.00028767,30]
[361339697,1747491041318,-1148.27,0.00028767,2]
[361339698,1747491041327,-500.0,0.0002881,2]
[361339699,1747491041336,-1200.0,0.00028832,2]
[361339700,1747491041347,-500.0,0.00028854,11]
[361339701,1747491041357,-1200.0,0.00028894,2]
[361339702,1747491041366,-151.08,0.00029,2]
[361339703,1747491041377,-150.0,0.00029068,2]
[361339704,1747491041386,-500.0,0.00029081,2]
[361339705,1747491041395,-552.62829931,0.00029141,20]
[361339706,1747491041404,-500.0,0.00029199,2]
[361339707,1747491041413,-500.0,0.00029234,12]
[361339708,1747491041423,-500.0,0.00029315,30]
[361339709,1747491041432,-1200.0,0.00029318,2]
[361339710,1747491041442,-500.0,0.0002933,2]
[361339711,1747491041451,-498.59234,0.0002935,2]
[361339712,1747491041460,-500.0,0.00029614,13]
[361339713,1747491041470,-500.0,0.00029701,2]
[361339714,1747491041479,-239.84119403,0.00029732,2]
[361339715,1747491041488,-159.14,0.00029733,120]
[361339716,1747491041498,-1813.6814,0.00029759,2]
[361339717,1747491041507,-500.0,0.00029759,2]
[361339718,1747491041517,-500.0,0.00029863,30]
[361339719,1747491041527,-552.62829931,0.00029866,21]
[361339720,1747491041536,-500.0,0.00029994,13]
[361339721,1747491041545,-900.0,0.00029997,2]
[361339722,1747491041554,-3018.99999901,0.0003,3]
[361339723,1747491041563,-399.999999,0.0003,2]
[361339724,1747491041572,-700.0,0.0003,11]
[361339725,1747491041583,-700.0,0.0003,11]
[361339726,1747491041593,-700.0,0.0003,11]
[361339727,1747491041606,-700.0,0.0003,11]
[361339728,1747491041616,-700.0,0.0003,11]
[361339729,1747491041625,-700.0,0.0003,11]
[361339730,1747491041635,-700.0,0.0003,11]
[361339731,1747491041644,-700.0,0.0003,11]
[361339732,1747491041654,-700.0,0.0003,11]
[361339733,1747491041663,-700.0,0.0003,11]
[361339734,1747491041673,-515.70283808,0.00030012,7]
[361339735,1747491041682,-500.0,0.00030091,7]
[361339736,1747491041692,-762.0,0.00030092,5]
[361339737,1747491041701,-1148.27,0.00030137,2]
[361339738,1747491041711,-500.0,0.00030159,7]
[361339739,1747491041720,-900.0,0.0003018,7]
[361339740,1747491041729,-405.44,0.000302,2]
[361339741,1747491041738,-1200.0,0.00030238,7]
[361339742,1747491041747,-500.0,0.00030275,7]
[361339743,1747491041757,-900.0,0.00030303,7]
[361339744,1747491041766,-1200.0,0.00030345,7]
[361339745,1747491041775,-900.0,0.00030354,7]
[361339746,1747491041784,-500.0,0.00030355,5]
[361339747,1747491041794,-500.0,0.00030374,14]
[361339748,1747491041803,-500.0,0.0003041,30]
[361339749,1747491041813,-1000.0,0.00030427,2]
[361339750,1747491041823,-150.0,0.00030438,2]
[361339751,1747491041832,-552.62829931,0.0003059,23]
[361339752,1747491041842,-500.0,0.00030753,14]
[361339753,1747491041851,-485.81,0.00030848,2]
[361339754,1747491041860,-500.0,0.00030902,5]
[361339755,1747491041871,-1000.0,0.00030908,5]
[361339756,1747491041881,-500.0,0.00030958,30]
[361339757,1747491041890,-804.72,0.00030996,2]
[361339758,1747491041900,-804.72,0.00030996,2]
[361339759,1747491041909,-804.72,0.00030996,2]
[361339760,1747491041919,-248.71531821,0.00031101,2]
[361339761,1747491041928,-500.0,0.00031133,15]
[361339762,1747491041937,-1000.0,0.000312,2]
[361339763,1747491041947,-1730.33458994,0.0003121,2]
[361339764,1747491041956,-552.62829931,0.00031314,24]
[361339765,1747491041966,-452.95,0.00031469,2]
[361339766,1747491041975,-452.95,0.00031469,2]
[361339767,1747491041984,-452.95,0.00031469,2]
[361339768,1747491041994,-452.95,0.00031469,2]
[361339769,1747491042003,-500.0,0.00031506,30]
[361339770,1747491042013,-1148.27,0.00031507,2]
[361339771,1747491042022,-500.0,0.00031513,16]
[361339772,1747491042031,-452.95,0.00031534,2]
[361339773,1747491042041,-152.0,0.00031736,3]
[361339774,1747491042050,-500.0,0.0003175,7]
[361339775,1747491042059,-172.45,0.00031795,30]
[361339776,1747491042068,-2349.309,0.00031795,30]
[361339777,1747491042078,-150.0,0.00031807,2]
[361339778,1747491042087,-498.59234,0.0003185,2]
[361339779,1747491042096,-500.0,0.00031893,16]
[361339780,1747491042105,-1200.0,0.00031899,7]
[361339781,1747491042115,-2500.0,0.000319,2]
[361339782,1747491042124,-560.95,0.00031955,2]
[361339783,1747491042133,-552.62829931,0.00032038,26]
[361339784,1747491042142,-500.0,0.00032054,30]
[361339785,1747491042151,-304.18542498,0.0003209,7]
[361339786,1747491042161,-500.0,0.00032145,7]
[361339787,1747491042170,-500.0,0.00032206,7]
[361339788,1747491042179,-300.0,0.00032242,2]
[361339789,1747491042188,-500.0,0.00032273,17]
[361339790,1747491042197,-1200.0,0.00032308,7]
[361339791,1747491042206,-257.91778498,0.0003247,2]
[361339792,1747491042215,-900.0,0.00032483,7]
[361339793,1747491042225,-900.0,0.00032577,7]
[361339794,1747491042235,-500.0,0.00032602,30]
[361339795,1747491042247,-900.0,0.00032619,7]
[361339796,1747491042257,-1200.0,0.00032629,7]
[361339797,1747491042266,-500.0,0.00032653,17]
[361339798,1747491042276,-1200.0,0.00032666,7]
[361339799,1747491042286,-500.0,0.00032726,15]
[361339800,1747491042297,-200.0,0.00032726,2]
[361339801,1747491042306,-523.48377338,0.00032746,7]
[361339802,1747491042315,-1200.0,0.00032758,7]
[361339803,1747491042325,-552.62829931,0.00032762,27]
[361339804,1747491042334,-1889.5898,0.00032776,2]
[361339805,1747491042344,-918.75,0.00032876,120]
[361339806,1747491042355,-918.75,0.00032876,120]
[361339807,1747491042364,-918.75,0.00032876,120]
[361339808,1747491042375,-918.75,0.00032876,120]
[361339809,1747491042385,-918.75,0.00032876,120]
[361339810,1747491042397,-918.75,0.00032876,120]
[361339811,1747491042407,-918.75,0.00032876,120]
[361339812,1747491042416,-918.75,0.00032876,120]
[361339813,1747491042425,-918.75,0.00032876,120]
[361339814,1747491042435,-918.75,0.00032876,120]
[361339815,1747491042444,-918.75,0.00032876,120]
[361339816,1747491042454,-918.75,0.00032876,120]
[361339817,1747491042463,-918.75,0.00032876,120]
[361339818,1747491042475,-918.75,0.00032876,120]
[361339819,1747491042485,-918.75,0.00032876,120]
[361339820,1747491042494,-918.75,0.00032876,120]
[361339821,1747491042504,-1148.27,0.00032877,2]
[361339822,1747491042514,-500.0,0.00032877,2]
[361339823,1747491042524,-711.41944605,0.000329,2]
[361339824,1747491042534,-500.0,0.00032904,2]
[361339825,1747491042543,-500.0,0.00032932,2]
[361339826,1747491042552,-500.0,0.00032959,2]
[361339827,1747491042562,-692.8469779,0.0003296,4]
[361339828,1747491042571,-500.0,0.00032987,2]
[361339829,1747491042581,-160.0,0.00033,2]
[361339830,1747491042590,-160.0,0.00033,2]
[361339831,1747491042602,-160.0,0.00033,2]
[361339832,1747491042612,-160.0,0.00033,2]
[361339833,1747491042622,-160.0,0.00033,2]
[361339834,1747491042632,-223.0,0.00033,2]
[361339835,1747491042641,-150.0,0.00033,14]
[361339836,1747491042652,-500.0,0.00033014,2]
[361339837,1747491042661,-500.0,0.00033032,18]
[361339838,1747491042672,-500.0,0.00033041,2]
[361339839,1747491042682,-500.0,0.00033069,2]
[361339840,1747491042692,-793.7442755,0.00033071,7]
[361339841,1747491042701,-500.0,0.00033096,2]
[361339842,1747491042711,-485.81,0.00033112,2]
[361339843,1747491042721,-500.0,0.00033124,2]
[361339844,1747491042731,-900.0,0.00033136,7]
[361339845,1747491042741,-500.0,0.0003315,30]
[361339846,1747491042751,-200.0,0.00033151,2]
[361339847,1747491042760,-500.0,0.00033151,2]
[361339848,1747491042770,-150.0,0.00033177,2]
[361339849,1747491042780,-500.0,0.00033178,2]
[361339850,1747491042789,-500.0,0.00033206,2]
[361339851,1747491042799,-500.0,0.00033233,2]
[361339852,1747491042810,-1000.0,0.00033242,10]
[361339853,1747491042819,-1000.0,0.00033254,2]
[361339854,1747491042830,-500.0,0.00033261,2]
[361339855,1747491042839,-500.0,0.00033288,2]
[361339856,1747491042849,-500.0,0.00033315,2]
[361339857,1747491042859,-255.65055184,0.00033343,2]
[361339858,1747491042868,-500.0,0.000334,7]
[361339859,1747491042878,-500.0,0.00033412,18]
[361339860,1747491042887,-552.62829931,0.00033486,29]
[361339861,1747491042896,-160.0,0.000335,4]
[361339862,1747491042905,-153.98,0.000335,31]
[361339863,1747491042915,-153.98,0.000335,31]
[361339864,1747491042924,-153.98,0.000335,31]
[361339865,1747491042933,-153.98,0.000335,31]
[361339866,1747491042943,-153.98,0.000335,31]
[361339867,1747491042952,-153.98,0.000335,31]
[361339868,1747491042961,-153.98,0.000335,31]
[361339870,1747491042971,-153.98,0.000335,31]
[361339871,1747491042979,-24765.0,0.000336,2]
[361339872,1747491042988,-500.0,0.00033624,7]
[361339873,1747491042999,-500.0,0.00033698,30]
[361339874,1747491043008,-285.94,0.00033731,2]
[361339875,1747491043018,-1304.53335217,0.00033741,30]
[361339877,1747491043028,-152.0,0.00033765,4]
[361339878,1747491043037,-4507.57105891,0.0003378,2]
[361339880,1747491043047,-500.0,0.00033792,19]
[361339881,1747491043056,-1000.0,0.00033808,2]
[361339882,1747491043065,-2000.0,0.0003382,3]
[361339884,1747491043075,-160.35923283,0.00033822,7]
[361339886,1747491043084,-267.46074303,0.00033839,2]
[361339888,1747491043093,-29598.812903,0.0003387,3]
[361339890,1747491043102,-353.11,0.00033873,2]
[361339892,1747491043112,-40000.0,0.00033878,45]
[361339894,1747491043121,-22373.2847,0.0003388,2]
[361339897,1747491043131,-338.81692049,0.0003388,15]
[361339899,1747491043140,-29598.812903,0.0003396,3]
[361339901,1747491043150,-29598.812903,0.0003397,3]
[361339903,1747491043159,-29598.812903,0.0003398,3]
[361339904,1747491043169,-29598.812903,0.0003398,3]
[361339905,1747491043178,-159.14,0.00033981,120]
[361339906,1747491043187,-5195.51,0.0003399,2]
[361339907,1747491043197,-5195.51,0.0003399,2]
[361339908,1747491043206,-5195.51,0.0003399,2]
[361339909,1747491043215,-5195.51,0.0003399,2]
[361339910,1747491043224,-5195.51,0.0003399,2]
[361339912,1747491043233,-5195.51,0.0003399,2]
[361339915,1747491043242,-5195.51,0.0003399,2]
[361339918,1747491043252,-5195.51,0.0003399,2]
[361339920,1747491043261,-5195.51,0.0003399,2]
[361339922,1747491043270,-5195.51,0.0003399,2]
[361339923,1747491043279,-5195.51,0.0003399,2]
[361339924,1747491043288,-5195.51,0.0003399,2]
[361339925,1747491043297,-5195.51,0.0003399,2]
[361339926,1747491043306,-5195.51,0.0003399,2]
[361339927,1747491043315,-5195.51,0.0003399,2]
[361339928,1747491043325,-5195.51,0.0003399,2]
[361339929,1747491043335,-5195.51,0.0003399,2]
[361339930,1747491043345,-5195.51,0.0003399,2]
[361339931,1747491043354,-5195.51,0.0003399,2]
[361339932,1747491043364,-5195.53684478,0.0003399,2]
[361339933,1747491043373,-29598.812903,0.0003399,3]
[361339934,1747491043383,-34925.9461167,0.0003399,3]
[361339935,1747491043392,-200.0,0.0003399,14]
[361339936,1747491043401,-150.0,0.0003399,7]
[361339937,1747491043411,-150.0,0.0003399,7]
[361339938,1747491043420,-150.0,0.0003399,7]
[361339939,1747491043429,-150.0,0.0003399,7]
[361339940,1747491043439,-918.75,0.00033999,120]
[361339941,1747491043448,-976.96,0.00034,2]
[361339942,1747491043458,-150.0,0.00034,2]
[361339943,1747491043467,-3000.0,0.00034,120]
[361339944,1747491043477,-900.0,0.00034,35]
[361339945,1747491043486,-66867.731658,0.00034,30]
[361339946,1747491043495,-583.0,0.00034,120]
[361339947,1747491043505,-1200.0,0.00034008,7]
[361339948,1747491043515,-500.0,0.00034016,7]
[361339949,1747491043525,-500.0,0.00034017,7]